bitfinex-derivatives/quotes_ETHF0:USTF0_20210110
["timestamp","ask_amount","ask_price","bid_price","bid_amount"]
[1610280679353,1.6504,1270.9,1267.5,3.0]
[1610280679553,2.0589,1271.2,1267.7,3.0]
[1610280679754,48.70031749,1271.6,1268.4,4.9417]
[1610280679954,48.70031749,1271.6,1268.8,3.0]
[1610280680154,44.5498,1271.6,1268.9,3.0]
[1610280680355,44.5498,1271.6,1269.3,3.0]
[1610280680554,44.5498,1271.6,1269.2,3.0]
[1610280680758,44.5498,1271.6,1269.5,5.2554]
[1610280680958,4.00959,1272.3,1271.5,4.00959]
[1610280681557,6.01664753,1272.9,1271.5,4.00959]
[1610280681756,4.18172655,1273.3,1271.5,6.18799]
[1610280682556,6.0330151,1273.4,1271.5,6.18799]
[1610280682757,6.0330151,1273.4,1271.5,2.1784]
[1610280682958,4.18473817,1273.4,1271.5,2.1784]
[1610280683359,4.19194944,1273.5,1271.5,2.1784]
[1610280683759,4.18941887,1273.4,1271.5,2.1784]
[1610280683959,6.04071174,1273.5,1271.5,2.1784]
[1610280684359,4.18903489,1273.5,1271.5,2.1784]
[1610280684759,6.04836511,1273.6,1271.5,2.1784]
[1610280684959,4.00959,1273.1,1272.4,4.00959]
[1610280685963,4.00959,1273.1,1271.5,2.1784]
[1610280686762,4.00959,1273.1,1270.9,2.4087838]
[1610280686963,4.00959,1271.6,1270.8,4.00959]
[1610280687162,4.00959,1271.6,1270.7,2.40906167]
[1610280687363,4.00959,1271.6,1270.5,2.40930318]
[1610280687764,1.85120667,1273.1,1268.8,1.83413836]
[1610280687765,6.03377086,1272.9,1268.8,1.83413836]
[1610280687962,4.18433918,1272.9,1268.8,2.2486]
[1610280688162,4.18433918,1272.9,1268.8,5.2486]
[1610280688364,6.03968968,1273.0,1268.8,2.2486]
[1610280688964,4.00959,1272.2,1271.2,4.00959]
[1610280691071,4.00959,1271.8,1268.9,3.0]
[1610280691267,4.00959,1271.8,1268.8,2.2486]
[1610280691868,6.06310317,1273.1,1268.9,3.0]
[1610280692066,6.06310317,1273.1,1269.1,3.0]
[1610280692067,6.0435,1273.1,1269.1,3.0]
[1610280692268,6.0435,1273.1,1269.5,3.0]
[1610280692467,6.0435,1273.1,1269.4,3.0]
[1610280692867,6.0435,1273.1,1269.5,5.1937]
[1610280693066,6.0435,1273.1,1269.5,2.1937]
[1610280695072,6.0435,1273.1,1271.0,4.00959]
[1610280695272,6.07001979,1273.0,1271.0,4.00959]
[1610280695472,6.07001979,1273.0,1271.0,5.98279]
[1610280695673,6.0435,1273.1,1271.0,5.98279]
[1610280695873,36.0435,1273.1,1271.0,5.98279]
[1610280696276,30.0,1273.1,1271.0,5.98279]
[1610280696876,30.0,1273.0,1271.0,1.9732]
[1610280697077,4.00959,1271.1,1271.0,1.9732]
[1610280697278,30.0,1273.0,1271.0,1.9732]
[1610280697679,36.06893944,1273.0,1271.0,1.9732]
[1610280698079,4.20308505,1272.6,1271.0,1.9732]
[1610280698279,30.0,1272.5,1271.0,1.9732]
[1610280698479,37.78730977,1272.5,1271.0,1.9732]
[1610280698679,1.85753909,1272.2,1271.0,1.9732]
[1610280698881,7.73902128,1272.2,1271.0,1.9732]
[1610280699080,4.00959,1271.1,1271.0,1.9732]
[1610280699880,4.00959,1271.1,1268.2,1.67591876]
[1610280700080,4.00959,1271.1,1268.1,3.85812642]
[1610280700681,5.96449,1271.1,1267.4,4.34072852]
[1610280701082,4.00959,1270.5,1269.9,4.00959]
[1610280703083,4.00959,1270.1,1270.0,4.00959]
[1610280703285,4.00959,1270.1,1267.7,4.33943734]
[1610280703884,4.00959,1270.1,1267.6,4.34005789]
[1610280704986,4.00959,1270.1,1267.5,4.33947725]
[1610280705486,30.0,1271.9,1267.6,6.51283469]
[1610280705686,30.0,1271.9,1267.9,4.33849949]
[1610280705888,30.0,1271.9,1267.9,6.40669949]
[1610280706086,30.0,1271.9,1268.1,4.338138]
[1610280706286,5.7839,1271.8,1268.0,4.33810858]
[1610280706486,30.0,1271.9,1268.0,7.33810858]
[1610280706688,30.0,1271.9,1268.1,4.33745319]
[1610280707087,4.00959,1270.6,1270.5,4.00959]
[1610280707287,30.0,1271.8,1270.5,4.00959]
[1610280707889,9.4515,1272.6,1270.5,4.00959]
[1610280708589,9.4515,1272.6,1270.5,6.19969]
[1610280708989,33.405,1272.6,1270.5,6.19969]
[1610280709191,4.00959,1271.7,1271.3,4.00959]
[1610280709590,4.00959,1271.7,1270.5,2.1901]
[1610280709790,34.00959,1271.7,1270.5,2.1901]
[1610280710791,4.00959,1271.7,1270.5,2.1901]
[1610280711191,1.5975,1272.3,1270.5,2.1901]
[1610280711392,30.0,1271.7,1270.5,2.1901]
[1610280711792,30.0,1271.7,1270.0,2.40992126]
[1610280711793,30.0,1271.7,1267.9,1.43922592]
[1610280711993,30.0,1271.7,1269.3,3.37421578]
[1610280712193,30.0,1271.7,1269.3,5.73321578]
[1610280712393,1.7416,1271.8,1269.3,5.73321578]
[1610280712994,1.5975,1272.3,1269.3,5.73321578]
[1610280713194,1.5975,1272.3,1271.0,4.00959]
[1610280714496,1.5975,1272.3,1270.8,1.8622]
[1610280714894,30.0,1272.5,1270.8,1.8622]
[1610280715095,4.00959,1271.1,1270.9,4.00959]
[1610280715494,4.00959,1271.1,1270.8,1.8622]
[1610280716695,5.7288,1272.6,1270.8,1.8622]
[1610280717095,5.7288,1272.6,1271.7,4.00959]
[1610280717296,5.7288,1272.6,1271.7,5.78299]
[1610280717899,33.405,1272.6,1271.7,5.78299]
[1610280718101,33.405,1272.6,1271.7,1.7734]
[1610280719098,3.405,1272.6,1272.5,4.00959]
[1610280719298,3.26575625,1273.5,1272.5,4.00959]
[1610280719299,5.6099,1273.6,1272.5,5.84919]
[1610280719900,6.09903986,1274.1,1272.5,5.84919]
[1610280720099,57.6147,1274.3,1272.5,5.84919]
[1610280721301,4.00959,1273.4,1272.5,1.8396]
[1610280722103,4.00959,1273.4,1272.6,2.40567082]
[1610280722305,30.0,1273.3,1272.4,2.40574314]
[1610280722702,30.0,1273.3,1272.1,4.81489177]
[1610280722703,2.2068,1273.3,1272.3,2.40569693]
[1610280722902,2.2068,1273.3,1272.1,4.33377731]
[1610280723303,2.2068,1273.3,1272.2,2.40572181]
[1610280723705,2.2068,1273.3,1087.7,0.9762554]
[1610280724005,2.2068,1273.3,1272.2,1.6276]
[1610280724205,4.00959,1273.6,1272.2,1.6276]
[1610280724405,34.00959,1273.6,1272.2,1.6276]
[1610280725210,4.00959,1272.3,1272.2,1.6276]
[1610280727011,1.8675,1273.5,1272.2,1.6276]
[1610280727213,1.8675,1273.5,1272.5,4.00959]
[1610280727613,1.8675,1273.5,1272.5,2.2583]
[1610280728413,1.8675,1273.5,1271.0,2.2424]
[1610280728615,6.1021,1273.4,1271.0,2.2424]
[1610280729214,4.00959,1272.5,1271.5,4.00959]
[1610280730014,34.00959,1272.5,1271.5,4.00959]
[1610280730213,4.00959,1272.5,1271.5,4.00959]
[1610280732716,4.00959,1272.5,1271.0,2.2424]
[1610280732916,1.6144,1273.0,1271.0,2.2424]
[1610280733116,1.6144,1273.0,1269.8,3.0]
[1610280733316,1.6144,1273.0,1270.1,3.0]
[1610280733517,1.6144,1273.0,1272.9,4.00959]
[1610280733716,6.1021,1273.4,1272.9,4.00959]
[1610280733917,6.1021,1273.4,1272.9,5.92059]
[1610280734317,2.1145,1274.5,1272.9,5.92059]
[1610280734517,30.0,1274.0,1272.9,5.92059]
[1610280734919,30.0,1274.0,1272.9,8.80537845]
[1610280735117,30.0,1274.0,1272.9,5.92059]
[1610280735520,30.0,1274.0,1273.3,4.00959]
[1610280735718,30.0,1274.0,1270.2,1.46082398]
[1610280736720,30.0,1273.9,1270.2,1.46082398]
[1610280737422,30.0,1273.9,1270.5,3.0]
[1610280737619,30.0,1274.1,1270.4,1.5159]
[1610280739420,4.00959,1272.8,1272.7,4.00959]
[1610280739625,2.2373,1274.2,1272.7,4.00959]
[1610280740024,32.2373,1274.2,1272.7,4.00959]
[1610280740223,32.2373,1274.2,1272.7,6.28839]
[1610280741023,2.2373,1274.2,1272.7,6.28839]
[1610280741225,30.0,1274.2,1272.7,6.28839]
[1610280741425,4.00959,1274.0,1273.4,4.00959]
[1610280742025,34.00959,1274.0,1273.4,4.00959]
[1610280743025,4.00959,1274.0,1273.4,4.00959]
[1610280743426,4.00959,1274.0,1273.9,4.00959]
[1610280744127,6.1212,1274.8,1273.9,4.00959]
[1610280744328,30.0,1274.7,1273.9,4.00959]
[1610280744727,30.0,1274.7,1273.7,2.4695]
[1610280745426,30.0,1274.7,1273.8,4.00959]
[1610280746026,30.0,1274.7,1273.7,2.4695]
[1610280747828,30.0,1274.7,1271.6,0.30735156]
[1610280748032,30.0,1274.7,1085.0,0.98656796]
[1610280748228,30.0,1274.7,1271.3,3.0]
[1610280748432,6.1212,1274.8,1271.5,4.8325]
[1610280748628,6.1212,1274.8,1271.6,3.0]
[1610280748828,6.1212,1274.8,1271.7,3.0]
[1610280749028,6.1212,1274.8,1271.5,4.8325]
[1610280749229,6.1212,1274.8,1271.5,1.8325]
[1610280749429,4.00959,1274.6,1273.8,4.00959]
[1610280749829,34.00959,1274.6,1273.8,4.00959]
[1610280750030,34.00959,1274.6,1271.5,1.8325]
[1610280751432,34.00959,1274.6,1274.1,4.00959]
[1610280751634,4.00959,1274.6,1274.1,5.68159]
[1610280752434,34.00959,1274.6,1274.1,1.672]
[1610280753038,34.00959,1274.6,1273.3,2.0701]
[1610280753240,36.14369,1274.6,1272.7,2.278]
[1610280753438,4.00959,1273.0,1272.7,6.28759]
[1610280754238,4.00959,1273.0,1272.7,2.278]
[1610280754438,34.00959,1273.0,1272.7,2.278]
[1610280755439,4.00959,1272.8,1272.7,2.278]
[1610280756439,34.00959,1272.8,1272.7,2.278]
[1610280757441,4.00959,1272.8,1272.7,2.278]
[1610280757641,30.0,1274.1,1272.7,2.278]
[1610280758242,61.711,1274.2,1272.5,4.00959]
[1610280758442,61.711,1274.2,1272.7,2.3877]
[1610280758642,61.711,1274.2,1272.7,5.7527394]
[1610280759042,61.711,1274.2,1273.0,3.36463021]
[1610280759443,4.00959,1274.0,1273.7,4.00959]
[1610280759645,61.711,1274.2,1273.7,4.00959]
[1610280759945,61.711,1274.2,1273.7,1.8909]
[1610280760943,91.711,1274.2,1273.7,1.8909]
[1610280761447,4.00959,1273.8,1273.7,1.8909]
[1610280761645,34.00959,1273.8,1273.7,1.8909]
[1610280762645,4.00959,1273.8,1273.7,1.8909]
[1610280763446,4.00959,1273.8,1273.7,5.90049]
[1610280763747,61.711,1274.2,1273.7,5.90049]
[1610280765350,2.4316,1275.0,1273.7,5.90049]
[1610280765552,4.00959,1274.7,1273.7,1.8909]
[1610280765953,4.00959,1274.7,1271.5,1.8325]
[1610280766152,4.00959,1274.7,1273.7,1.8228]
[1610280766754,34.00959,1274.7,1273.7,1.8228]
[1610280767557,4.00959,1274.2,1273.8,4.00959]
[1610280768355,4.00959,1274.2,1273.7,1.8228]
[1610280768756,34.00959,1274.2,1273.7,1.8228]
[1610280769556,4.00959,1273.8,1273.7,1.8228]
[1610280769956,34.00959,1273.8,1273.7,1.8228]
[1610280770357,34.00959,1273.8,1272.1,3.84134637]
[1610280770558,34.00959,1273.8,1272.0,3.84473978]
[1610280770959,4.00959,1273.8,1272.0,3.84473978]
[1610280771557,4.00959,1273.3,1272.0,3.84473978]
[1610280771758,4.00959,1273.3,1270.4,0.96376483]
[1610280772158,4.00959,1273.3,1269.8,6.405]
[1610280772457,4.00959,1273.3,1269.9,5.3593]
[1610280772657,2.0425,1274.3,1270.8,3.0]
[1610280772858,2.4366,1274.6,1270.8,5.018]
[1610280773057,2.4366,1274.6,1271.0,3.0]
[1610280773257,30.0,1274.5,1270.8,5.018]
[1610280773458,4.00959,1273.6,1273.3,4.00959]
[1610280773656,34.00959,1273.6,1273.3,4.00959]
[1610280774058,34.00959,1273.6,1270.8,5.018]
[1610280774258,34.00959,1273.6,1270.8,1.613]
[1610280775459,4.00959,1273.3,1273.2,3.00959]
[1610280775860,2.4366,1274.6,1273.2,3.00959]
[1610280776061,30.0,1274.6,1273.2,3.00959]
[1610280776260,30.0,1274.6,1273.2,4.63049]
[1610280777061,30.0,1274.7,1273.2,4.63049]
[1610280777561,4.00959,1274.5,1273.7,4.00959]
[1610280777763,34.00959,1274.5,1273.7,4.00959]
[1610280777962,34.00959,1274.5,1273.2,1.6209]
[1610280779063,4.00959,1274.5,1273.2,1.6209]
[1610280779466,4.00959,1274.1,1273.6,4.00959]
[1610280780464,34.00959,1274.1,1273.2,1.6209]
[1610280780867,30.00959,1274.1,1273.2,1.6209]
[1610280781270,30.00959,1274.1,1270.8,5.018]
[1610280781472,4.00959,1273.6,1273.4,4.00959]
[1610280781873,34.00959,1273.6,1273.4,4.00959]
[1610280782273,4.00959,1273.6,1271.4,4.30517565]
[1610280782475,30.0,1274.4,1271.4,4.30517565]
[1610280782874,30.0,1274.6,1271.4,6.03087565]
[1610280783074,26.0,1274.6,1271.4,6.03087565]
[1610280783275,26.0,1274.6,1271.8,4.28322715]
[1610280783474,4.00959,1274.0,1273.7,4.00959]
[1610280783876,4.00959,1274.0,1270.3,3.3073]
[1610280784075,4.00959,1274.0,1270.8,12.101]
[1610280784274,4.00959,1274.0,1270.8,9.101]
[1610280784674,30.00959,1274.0,1270.8,9.101]
[1610280785476,30.00959,1274.0,1273.6,4.00959]
[1610280785677,4.00959,1274.0,1273.6,2.3104]
[1610280785878,30.00959,1274.0,1273.6,2.3104]
[1610280786877,4.00959,1274.0,1273.6,2.3104]
[1610280787078,30.00959,1274.0,1273.6,2.3104]
[1610280787477,4.00959,1273.7,1273.6,2.3104]
[1610280787678,30.00959,1273.7,1273.6,2.3104]
[1610280787880,26.0,1273.7,1273.6,2.3104]
[1610280788478,30.0,1274.3,1273.6,2.3104]
[1610280789579,4.00959,1273.7,1273.6,6.31999]
[1610280789780,4.00959,1273.7,1273.6,2.3104]
[1610280790381,34.00959,1273.7,1273.6,2.3104]
[1610280790682,34.00959,1273.7,1270.9,4.7433748]
[1610280791482,4.00959,1273.5,1273.4,4.00959]
[1610280792684,30.0,1274.8,1273.4,4.00959]
[1610280792885,30.0,1274.8,1273.4,6.39609]
[1610280793584,30.0,1274.8,1274.0,4.00959]
[1610280793784,30.0,1274.8,1274.0,5.77159]
[1610280793984,30.0,1274.8,1274.0,1.762]
[1610280795787,30.0,1275.2,1271.4,28.43185156]
[1610280795987,30.0,1275.2,1274.0,2.4593]
[1610280797188,30.0,1275.1,1274.0,2.4593]
[1610280797588,30.0,1275.1,1274.9,4.00959]
[1610280797989,30.0,1275.1,1274.9,2.2772]
[1610280798189,30.0,1275.0,1274.9,2.2772]
[1610280800193,31.9962,1276.2,1274.9,2.2772]
[1610280800991,30.0,1276.2,1274.9,2.2772]
[1610280801693,30.0,1276.2,1275.5,4.00959]
[1610280801892,30.0,1276.2,1275.5,5.89179]
[1610280802492,30.0,1276.2,1275.5,1.8822]
[1610280803193,30.0,1276.1,1275.5,1.8822]
[1610280803694,4.00959,1275.6,1275.5,1.8822]
[1610280803895,34.00959,1275.6,1275.5,1.8822]
[1610280804496,36.04699,1275.6,1274.0,2.4593]
[1610280804699,36.04699,1275.6,1271.8,4.67685051]
[1610280804897,36.04699,1275.6,1271.5,0.1943]
[1610280804898,36.04699,1275.6,1271.6,4.68126432]
[1610280805697,4.00959,1274.3,1274.1,4.00959]
[1610280805896,30.0,1274.2,1271.6,4.68126432]
[1610280806297,30.0,1274.2,1272.1,4.2184465]
[1610280806498,30.0,1274.2,1272.2,4.22178152]
[1610280807101,30.0,1274.2,1272.3,4.22273072]
[1610280807698,30.0,1274.2,1274.1,4.00959]
[1610280807899,34.00959,1275.0,1274.1,2.4951]
[1610280808700,4.00959,1275.0,1274.1,2.4951]
[1610280809100,34.00959,1275.0,1274.1,2.4951]
[1610280809702,4.00959,1274.3,1274.1,6.50469]
[1610280809900,34.00959,1274.3,1274.1,6.50469]
[1610280810602,30.0,1274.3,1274.1,6.50469]
[1610280810802,30.0,1275.2,1274.1,6.50469]
[1610280811602,4.00959,1275.1,1274.9,4.00959]
[1610280811803,34.00959,1275.1,1274.1,2.4951]
[1610280812408,30.0,1275.1,1274.1,2.4951]
[1610280812805,30.0,1275.0,1271.8,3.0]
[1610280813005,30.0,1275.0,1271.6,3.0]
[1610280813206,30.0,1275.0,1271.7,3.0]
[1610280813407,30.0,1275.0,1271.5,33.0]
[1610280813607,4.00959,1274.9,1274.5,4.00959]
[1610280814007,30.0,1274.8,1274.5,4.00959]
[1610280814207,30.0,1274.8,1271.9,3.0]
[1610280814408,30.0,1274.8,1272.0,3.0]
[1610280814607,30.0,1274.8,1272.1,3.0]
[1610280814808,30.0,1274.8,1272.0,2.4435]
[1610280815007,4.00959,1274.9,1272.0,2.4435]
[1610280815207,4.00959,1274.9,1272.0,5.4435]
[1610280815409,4.00959,1274.9,1272.1,3.0]
[1610280815607,4.00959,1275.2,1274.8,4.00959]
[1610280816209,4.00959,1275.2,1272.4,1.9763]
[1610280817209,34.00959,1275.2,1272.4,1.9763]
[1610280817609,34.00959,1275.2,1274.8,4.00959]
[1610280817809,34.00959,1275.2,1274.8,1.5514]
[1610280818410,4.00959,1275.2,1274.8,1.5514]
[1610280818811,30.0,1276.0,1274.8,1.5514]
[1610280819210,30.0,1276.7,1274.8,1.5514]
[1610280819812,4.00959,1276.4,1272.4,1.9763]
[1610280820014,30.0,1276.3,1272.7,0.1818]
[1610280820211,30.0,1276.3,1272.7,1.5798]
[1610280821211,4.00959,1276.4,1272.7,1.5798]
[1610280821411,34.00959,1276.4,1272.7,6.1597626]
[1610280821611,34.00959,1276.4,1272.7,29.16982398]
[1610280821812,30.0,1276.4,1276.1,1.6486]
[1610280822413,30.0,1276.3,1276.1,1.6486]
[1610280823414,30.0,1276.2,1276.1,1.6486]
[1610280823815,30.0,1276.2,1276.1,5.65819]
[1610280824016,30.0,1276.2,1276.1,1.6486]
[1610280824417,34.00959,1276.3,1276.1,1.6486]
[1610280825519,4.00959,1276.3,1276.1,1.6486]
[1610280826121,34.00959,1276.3,1276.1,1.6486]
[1610280826821,34.00959,1276.3,1272.9,4.56516897]
[1610280827823,30.0,1276.3,1276.0,5.73319]
[1610280828423,30.0,1277.3,1276.0,5.73319]
[1610280829423,30.0,1277.8,1276.0,5.73319]
[1610280829824,4.00959,1277.6,1277.4,4.00959]
[1610280830026,30.0,1277.5,1276.0,1.7236]
[1610280831026,30.0,1278.0,1276.0,1.7236]
[1610280831728,4.00959,1277.4,1273.7,3.26403037]
[1610280831928,4.00959,1277.4,1275.2,3.60608019]
[1610280832128,2.0201,1278.2,1273.7,3.26403037]
[1610280832329,30.0,1279.0,1275.2,1.5974]
[1610280833731,4.00959,1277.7,1275.2,1.5974]
[1610280834330,2.1542,1278.2,1275.2,1.5974]
[1610280835730,4.00959,1278.1,1277.6,4.00959]
[1610280837732,4.00959,1278.1,1278.0,4.00959]
[1610280838135,4.00959,1278.1,1278.0,6.05269]
[1610280838333,4.00959,1278.1,1278.0,2.0431]
[1610280841437,31.7605,1279.1,1278.0,2.0431]
[1610280841738,4.00959,1278.4,1278.3,4.00959]
[1610280841938,1.7605,1279.1,1278.0,2.0431]
[1610280842339,30.0,1279.8,1278.0,2.0431]
[1610280842739,30.0,1280.0,1278.0,2.0431]
[1610280843140,30.0,1280.0,1276.6,3.59695157]
[1610280843339,30.0,1279.8,1278.0,1.5965]
[1610280843738,30.0,1279.8,1278.8,4.00959]
[1610280844342,14.0281,1279.9,1278.8,4.00959]
[1610280844742,8.397,1279.9,1278.8,4.00959]
[1610280844942,2.4141,1279.9,1278.8,4.00959]
[1610280845744,2.4141,1279.9,1279.2,4.00959]
[1610280845944,30.0,1279.8,1278.7,1.7955]
[1610280846344,2.4141,1279.9,1278.7,1.7955]
[1610280847746,2.4141,1279.9,1279.4,4.00959]
[1610280847947,2.4141,1279.9,1278.7,1.7955]
[1610280848545,30.0,1280.9,1278.7,1.7955]
[1610280849050,30.0,1280.9,1278.0,1.5965]
[1610280849247,30.0,1280.9,1277.8,3.15258946]
[1610280849248,2.2778,1280.9,1278.7,1.7017]
[1610280849847,2.2778,1280.9,1280.1,4.00959]
[1610280850647,30.0,1281.9,1280.1,4.00959]
[1610280851348,9.308,1282.0,1280.1,4.00959]
[1610280851749,9.308,1282.0,1280.0,1.6186]
[1610280851750,9.308,1282.0,1280.7,4.00959]
[1610280852147,10.8847,1282.0,1280.0,1.6186]
[1610280853650,40.8847,1282.0,1279.7,2.1481]
[1610280853850,4.00959,1280.6,1280.4,4.00959]
[1610280854050,1.5156,1280.6,1280.4,4.00959]
[1610280854351,1.5156,1280.6,1279.7,2.1481]
[1610280855253,1.5156,1280.6,1278.7,4.8833815]
[1610280855453,2.0719,1281.1,1278.7,4.8833815]
[1610280855853,2.0719,1281.1,1280.2,4.00959]
[1610280856054,2.0719,1281.1,1280.2,5.93689]
[1610280857858,4.00959,1280.4,1280.2,5.93689]
[1610280858360,2.0719,1281.1,1280.2,5.93689]
[1610280859862,4.00959,1280.8,1280.4,4.00959]
[1610280861864,4.00959,1280.8,1280.7,4.00959]
[1610280863265,4.00959,1280.8,1280.5,1.7032]
[1610280863464,34.00959,1280.8,1280.2,1.9273]
[1610280863665,35.72519,1280.8,1279.3,3.15546573]
[1610280863866,4.00959,1279.4,1279.3,3.15546573]
[1610280864066,4.00959,1279.4,1279.1,3.15971518]
[1610280864268,4.00959,1279.4,1278.9,3.16297735]
[1610280864667,4.00959,1279.4,1278.7,5.71129]
[1610280864668,4.00959,1279.4,1278.8,3.16419146]
[1610280864867,34.00959,1279.4,1278.7,4.86740001]
[1610280865270,34.00959,1279.4,1278.7,1.7017]
[1610280865468,34.00959,1279.4,1278.6,3.16625103]
[1610280865669,34.00959,1279.4,1278.3,3.1709355]
[1610280865869,4.00959,1278.4,1278.1,3.17530504]
[1610280866072,34.00959,1278.4,1278.1,3.17530504]
[1610280866270,34.00959,1278.4,1276.8,8.09212505]
[1610280866271,34.00959,1278.4,1277.9,3.1782459]
[1610280866670,34.00959,1278.4,1276.8,4.00959]
[1610280866671,34.00959,1278.4,1277.5,3.18427584]
[1610280867070,4.00959,1278.4,1277.4,3.18508785]
[1610280867271,30.0,1278.3,1277.3,3.18557417]
[1610280867670,30.0,1278.3,1277.2,3.18549349]
[1610280868270,1.5309,1278.6,1277.1,3.1819572]
[1610280868471,1.5309,1278.6,1277.1,4.9044572]
[1610280868870,1.5309,1278.6,1277.2,3.17510093]
[1610280869870,4.00959,1278.0,1277.2,3.17510093]
[1610280870070,4.00959,1278.0,1277.3,3.16352806]
[1610280870570,4.00959,1278.0,1277.6,3.15222613]
[1610280870771,4.00959,1278.0,1277.6,4.89752613]
[1610280870971,4.00959,1278.0,1277.6,1.7453]
[1610280871271,4.00959,1278.0,1277.6,4.89351141]
[1610280871576,4.00959,1278.0,1277.6,1.7453]
[1610280871971,4.00959,1277.7,1277.6,1.7453]
[1610280873073,2.4658,1278.7,1277.6,1.7453]
[1610280873875,4.00959,1278.0,1277.6,1.7453]
[1610280874074,32.4658,1278.7,1277.6,1.7453]
[1610280874075,32.4658,1278.7,1277.9,1.6578]
[1610280875978,4.00959,1278.0,1277.9,1.6578]
[1610280876280,34.00959,1278.0,1277.9,1.6578]
[1610280877579,34.00959,1278.0,1277.6,1.7453]
[1610280877780,34.00959,1278.0,1277.1,4.8672222]
[1610280877979,4.00959,1277.2,1277.1,1.7225]
[1610280878179,4.00959,1277.2,1277.0,3.15149091]
[1610280878380,30.0,1277.9,1276.9,3.15467986]
[1610280878580,30.0,1277.9,1277.0,3.15734207]
[1610280879186,30.0,1277.9,1277.2,3.16158607]
[1610280879584,30.0,1277.9,1277.3,3.16722046]
[1610280879783,30.0,1277.9,1277.3,5.09332046]
[1610280879984,30.0,1277.9,1277.8,4.00959]
[1610280880185,30.0,1277.9,1277.8,5.52519]
[1610280880585,30.0,1278.5,1277.8,5.52519]
[1610280880988,30.0,1278.5,1277.8,8.68818421]
[1610280881188,30.0,1279.3,1277.8,8.68818421]
[1610280881389,30.0,1279.3,1277.9,3.16451298]
[1610280881988,30.0,1279.3,1278.9,4.00959]
[1610280882192,36.0651,1281.0,1278.9,6.29789]
[1610280882591,30.0,1281.0,1278.9,6.29789]
[1610280882791,30.0,1281.0,1279.1,2.71233712]
[1610280883192,30.0,1281.0,1279.2,2.71187606]
[1610280883392,30.0,1281.0,1279.2,4.83527606]
[1610280883593,30.0,1281.0,1279.3,2.71184993]
[1610280883794,30.0,1281.0,1279.4,2.71360147]
[1610280883993,5.00959,1280.0,1279.4,2.71360147]
[1610280884196,30.0,1279.9,1279.5,2.71178734]
[1610280885596,30.0,1279.9,1279.4,2.71500162]
[1610280885896,4.00959,1279.5,1279.4,2.71500162]
[1610280886097,34.00959,1279.5,1279.4,2.71500162]
[1610280886697,34.00959,1279.5,1279.3,2.71567594]
[1610280887297,34.00959,1279.5,1279.2,2.71746769]
[1610280887497,4.00959,1279.5,1279.2,2.71746769]
[1610280887696,34.00959,1279.5,1279.2,2.71746769]
[1610280887897,4.00959,1279.3,1279.1,2.72068239]
[1610280888097,30.0,1279.2,1279.1,2.72068239]
[1610280888699,30.0,1279.2,1279.0,2.72390911]
[1610280888897,30.0,1279.2,1278.9,2.72678443]
[1610280889698,30.0,1279.2,1278.7,2.7268728]
[1610280890100,30.0,1279.2,1278.3,3.1813516]
[1610280890300,30.0,1279.2,1278.4,3.18127408]
[1610280891003,30.0,1279.1,1278.3,3.18450428]
[1610280891402,31.8488,1279.1,1278.2,3.18783725]
[1610280891802,31.8488,1279.1,1278.1,3.19042579]
[1610280892004,4.00959,1278.2,1278.1,3.19042579]
[1610280892204,34.00959,1278.2,1278.0,3.19403929]
[1610280892803,34.00959,1278.2,1277.9,3.1965408]
[1610280893202,4.00959,1278.2,1277.9,3.1965408]
[1610280893402,30.0,1278.4,1277.9,3.1965408]
[1610280893603,30.0,1278.4,1278.0,3.20283942]
[1610280893904,4.00959,1278.1,1278.0,3.20283942]
[1610280894103,34.00959,1278.1,1278.0,3.20283942]
[1610280894304,34.00959,1278.1,1277.9,3.20737622]
[1610280894704,30.0,1278.1,1277.8,3.20862536]
[1610280894903,30.0,1278.1,1277.9,3.21221148]
[1610280895104,30.0,1278.0,1277.9,3.21221148]
[1610280895605,30.0,1278.0,1277.4,6.9813632]
[1610280895906,30.0,1278.0,1277.9,4.00959]
[1610280896106,30.0,1278.3,1277.4,3.6717732]
[1610280896606,30.0,1278.3,1278.1,3.21260586]
[1610280897410,30.0,1278.3,1278.0,3.21920232]
[1610280898012,4.00959,1278.1,1277.9,3.22769231]
[1610280898211,26.4,1278.0,1277.9,3.22769231]
[1610280898812,16.4,1278.0,1277.9,3.22769231]
[1610280899616,16.4,1278.0,1277.3,5.61714907]
[1610280899915,16.4,1278.0,1277.9,4.00959]
[1610280900121,4.00959,1278.4,1277.9,4.00959]
[1610280900317,1.6407,1278.8,1277.9,4.00959]
[1610280900519,1.0,1279.0,1278.1,3.22448895]
[1610280900917,1.0,1279.0,1278.3,3.22233735]
[1610280901317,1.0,1279.0,1278.4,3.22084874]
[1610280901918,5.00959,1279.0,1278.5,7.2269641]
[1610280902119,16.4,1278.9,1278.5,7.2269641]
[1610280902520,16.4,1278.9,1278.6,3.21273552]
[1610280903922,4.00959,1278.7,1278.5,3.22272851]
[1610280904623,4.00959,1278.7,1278.0,2.1441]
[1610280904624,4.00959,1278.7,1278.6,3.22355012]
[1610280904822,20.40959,1278.7,1278.6,3.22355012]
[1610280905323,16.4,1278.7,1278.6,3.22355012]
[1610280907325,16.4,1278.7,1278.3,4.00959]
[1610280907524,16.4,1278.7,1278.3,6.37509]